[Event "Polish Youth Ekstraliga 2022"]
[Site "Lublin"]
[Date "2022.06.26"]
[Round "2.2"]
[White "Chyzy, Jakub"]
[Black "Ochedzan, Tymon"]
[Result "1-0"]
[ECO "B18"]
[WhiteElo "2191"]
[BlackElo "2261"]
[Annotator "TA"]
[PlyCount "59"]
[EventDate "2022.06.24"]
[EventType "team-tourn"]
[EventCountry "POL"]
[SourceTitle "playchess.com"]
[Source "ChessBase"]
[SourceQuality "1"]
[TimeControl "40/5400+30:1800+30"]

{[%evp 14,58,-4,-16,102,96,68,65,62,66,74,60,204,200,310,323,334,325,319,329,313,334,467,468,522,516,1707,1611,1658,970,1295,1236,3495,3161,3332,2375,29975,29976,29994,29995,29995,29996,29997,29998,29998,29999,29999]} 1. e4 {[%emt 0:03:15]} c6 {[%emt 0:00:06]} 2. d4 {[%emt 0:00:07]} d5 {[%emt 0:00:07]} 3. Nc3 {[%emt 0:00:02][%cal Bb1c3,Bc3e4,Be4g3][%mdl 32]} dxe4 {[%emt 0:00:14]} 4. Nxe4 {[%emt 0:00:04]} Bf5 {[%emt 0:00:23]} 5. Ng3 {[%emt 0:00:04]} Bg6 {[%emt 0:00:09]} 6. h4 {[%emt 0:00:02]} h6 {[%emt 0:00:13]} 7. f4 {[%emt 0:00:03][%cal Bf2f4,Bf4f5][%mdl 32]} e6 {[%emt 0:00:37]} 8. Nf3 {[%emt 0:00:01] [#]} c5 $146 {[%emt 0:00:31] B18: Classical Caro-Kann: 4...Bf5 sidelines.} (8... Nf6 $11) ({Predecessor:} 8... Nd7 9. h5 Bh7 10. Bd3 Bxd3 11. Qxd3 Ngf6 12. Bd2 Qc7 13. O-O-O Bd6 14. Ne5 O-O 15. Ne4 Nxe4 16. Qxe4 f5 17. Qe2 Nf6 18. g4 Bxe5 19. dxe5 Nxg4 20. Bb4 c5 21. Be1 Rad8 22. Bh4 Rd4 23. Rxd4 cxd4 24. Rd1 {0-1 (65) Movsesian,S (2629)-Erenburg,S (2589) Chess.com INT 2019}) 9. Ne5 $16 {[%emt 0:01:30] [#] Black must now prevent Bb5+.} Ne7 {[%emt 0:00:10]} 10. Bb5+ {[%emt 0:19:15]} (10. dxc5 Qxd1+ 11. Kxd1 Nbc6 $11) 10... Nbc6 {[%emt 0:00:18] White is slightly better.} 11. Qe2 {[%emt 0:05:36] Hoping for 0-0.} cxd4 {[%emt 0:13:39][%cal Od4d3]} (11... Qxd4 $2 12. f5 Bh7 13. fxe6 fxe6 14. c3 $18) 12. f5 $1 {[%emt 0:05:49] White is more active.} Qd6 {[%emt 0:04:10] This move loses the game for Black.} 13. Bf4 $18 {[%emt 0:25:09][%cal Bc1f4,Bf4d2,Bd2e3][%mdl 32]} ({Weaker is} 13. fxg6 Nxg6 14. Nxc6 (14. Bxc6+ bxc6 15. Nf5 Qxe5 $17) 14... bxc6 $11) 13... Qb4+ {[%emt 0:25:26]} (13... exf5 $142 14. h5 (14. Nxc6 Qxf4 15. Qe5 Qxe5+ 16. Nxe5+ Kd8 $16) 14... O-O-O) 14. Bd2 {[%emt 0:09:59]} Qxb2 {[%emt 0:02:35] aiming for ...d3.} 15. O-O {[%emt 0:02:47]} d3 {[%emt 0:16:33]} 16. Bxc6+ {[%emt 0:01:08]} Nxc6 {[%emt 0:02:16]} 17. Nxd3 {[%emt 0:00:18] The board is on fire. Pair of Knights!} Qd4+ {[%emt 0:02:33]} 18. Be3 {[%emt 0:00:36]} Qxh4 {[%emt 0:01:32]} 19. fxg6 {[%emt 0:02:10]} Qxg3 {[%emt 0:03:36]} (19... f5 $142 20. Bf2 Qc4) 20. gxf7+ {[%emt 0:00:09]} Ke7 {[%emt 0:05:12]} 21. Bc5+ {[%emt 0:01:19]} Kd8 {[%emt 0:02:24]} 22. Bxf8 {[%emt 0:08:36]} Rxf8 {[%emt 0:00:10]} 23. Nc5 {[%emt 0:08:10]} Qe5 {[%emt 0:03:28]} 24. Rad1+ {[%emt 0:00:58]} Kc7 {[%emt 0:01:27]} 25. Nxe6+ {[%emt 0:00:09] White mates.} Kb6 {[%emt 0:00:26]} 26. Rb1+ {[%emt 0:00:07]} Ka5 {[%emt 0:00:10]} 27. Qd2+ {[%emt 0:00:10]} Ka6 {[%emt 0:00:35] [#]} 28. Nc7+ $1 {[%emt 0:00:10][%mdl 512]} Qxc7 {[%emt 0:00:05]} 29. Qd3+ {[%emt 0:00:03]} Ka5 {[%emt 0:00:06]} 30. Qb5# {Weighted Error Value: White=0.03 (flawless) /Black=0.79} 1-0

[Event "Polish Youth Ekstraliga 2022"]
[Site "Lublin"]
[Date "2022.06.26"]
[Round "2.3"]
[White "Jaworski, Tymon"]
[Black "Krawczyk, Flawian"]
[Result "0-1"]
[ECO "A45"]
[WhiteElo "1628"]
[BlackElo "2212"]
[Annotator "RC"]
[PlyCount "128"]
[EventDate "2022.06.24"]
[EventType "team-tourn"]
[EventCountry "POL"]
[SourceTitle "playchess.com"]
[Source "ChessBase"]
[SourceQuality "1"]
[TimeControl "40/5400+30:1800+30"]

1. d4 {[%emt 0:00:08]} Nf6 {[%emt 0:00:19]} 2. Bg5 {[%emt 0:00:27]} g6 {[%emt 0:00:06]} 3. Bxf6 {[%emt 0:00:36]} exf6 {[%emt 0:00:05]} 4. c4 {[%emt 0:00:33]} Bb4+ {[%emt 0:00:03]} 5. Nc3 {[%emt 0:00:16]} Bxc3+ {[%emt 0:00:03]} 6. bxc3 {[%emt 0:00:09]} d6 {[%emt 0:00:01]} 7. e3 {[%emt 0:01:14]} Nd7 {[%emt 0:00:24]} 8. Nf3 {[%emt 0:00:36]} f5 {[%emt 0:00:08]} 9. g3 {[%emt 0:01:42]} O-O {[%emt 0:04:05]} 10. Bg2 {[%emt 0:00:54]} c5 {[%emt 0:02:18]} 11. O-O {[%emt 0:01:39]} Nf6 {[%emt 0:10:09]} 12. Nd2 {[%emt 0:07:21]} Rb8 {[%emt 0:03:22]} 13. Rb1 {[%emt 0:02:34]} Qc7 {[%emt 0:02:19]} 14. Qc2 {[%emt 0:02:01]} Rd8 {[%emt 0:02:06]} 15. Rfc1 {[%emt 0:04:09]} Kg7 {[%emt 0:09:58]} 16. Rb2 {[%emt 0:08:01]} h5 {[%emt 0:09:08]} 17. h4 {[%emt 0:08:38]} Qe7 {[%emt 0:07:44]} 18. Qa4 {[%emt 0:04:46]} b6 {[%emt 0:07:59]} 19. Qc2 {[%emt 0:03:36]} Be6 {[%emt 0:07:57]} 20. d5 {[%emt 0:06:48]} Bd7 {[%emt 0:01:09]} 21. Ra1 {[%emt 0:05:40]} Ng4 {[%emt 0:02:02]} 22. a4 {[%emt 0:04:20]} Re8 {[%emt 0:11:25]} 23. Nf3 {[%emt 0:05:27]} Ne5 {[%emt 0:00:36]} 24. Nxe5 {[%emt 0:01:57]} Qxe5 {[%emt 0:00:19]} 25. a5 {[%emt 0:01:21]} bxa5 {[%emt 0:02:51]} 26. Rxa5 {[%emt 0:00:36]} f4 {[%emt 0:00:32]} 27. gxf4 {[%emt 0:03:20]} Qf6 {[%emt 0:00:31]} 28. Rxa7 {[%emt 0:02:07]} Bf5 {[%emt 0:00:13]} 29. Qe2 {[%emt 0:03:21]} Qxc3 {[%emt 0:02:37]} 30. Rxb8 {[%emt 0:01:01]} Rxb8 {[%emt 0:00:01]} 31. e4 {[%emt 0:00:52]} Rb1+ {[%emt 0:01:34]} 32. Kh2 {[%emt 0:01:52]} Qf6 {[%emt 0:07:01]} 33. Kg3 {[%emt 0:03:29]} Qc3+ {[%emt 0:02:52]} 34. Kh2 {[%emt 0:00:58]} Bg4 {[%emt 0:01:37]} 35. Qe3 {[%emt 0:02:33]} Qxc4 {[%emt 0:03:27]} 36. Ra3 {[%emt 0:01:13]} Qd4 {[%emt 0:00:52]} 37. Qxd4+ {[%emt 0:01:37]} cxd4 {[%emt 0:00:01]} 38. f3 {[%emt 0:00:43]} Bd7 39. Rd3 {[%emt 0:00:39]} Rb4 {[%emt 0:00:13]} 40. Kg3 {[%emt 0:00:00]} Kf6 {[%emt 0:00:00]} 41. Rd2 {[%emt 0:02:20]} Bb5 {[%emt 0:01:55]} 42. Bh3 {[%emt 0:03:57]} Ke7 {[%emt 0:06:21]} 43. f5 {[%emt 0:06:20]} Kf6 {[%emt 0:00:46]} 44. Kf4 {[%emt 0:00:32]} Bd7 {[%emt 0:04:35]} 45. Ra2 {[%emt 0:15:08]} gxf5 {[%emt 0:03:36]} 46. Ra6 {[%emt 0:01:27]} d3 {[%emt 0:01:27]} 47. Ra2 {[%emt 0:02:39]} Rb1 {[%emt 0:03:13]} 48. Rd2 {[%emt 0:03:02]} Rh1 {[%emt 0:01:10]} 49. Bg2 {[%emt 0:00:44]} Rxh4+ {[%emt 0:02:57]} 50. Kg3 {[%emt 0:00:25]} Kg5 {[%emt 0:00:01]} 51. Rxd3 {[%emt 0:00:49]} fxe4 {[%emt 0:02:33]} 52. fxe4 {[%emt 0:00:07]} Rf4 53. Ra3 {[%emt 0:02:03]} h4+ {[%emt 0:01:03]} 54. Kh2 {[%emt 0:00:03]} Kf6 {[%emt 0:00:44]} 55. Ra7 {[%emt 0:00:29]} Bg4 {[%emt 0:00:51]} 56. Ra8 {[%emt 0:00:50]} Rf2 {[%emt 0:04:15]} 57. Kg1 {[%emt 0:00:19]} Rc2 {[%emt 0:00:02]} 58. Rh8 {[%emt 0:00:34]} Kg5 {[%emt 0:00:40]} 59. Rd8 {[%emt 0:00:53]} h3 {[%emt 0:01:48]} 60. Bh1 {[%emt 0:01:10]} Kf4 {[%emt 0:00:08]} 61. Rxd6 {[%emt 0:00:26]} h2+ {[%emt 0:02:20]} 62. Kf1 {[%emt 0:00:03]} Bh3+ {[%emt 0:00:17]} 63. Ke1 {[%emt 0:00:05]} Rc1+ {[%emt 0:00:13]} 64. Kf2 {[%emt 0:00:07]} Rxh1 {[%emt 0:00:09]} 0-1

[Event "Polish Youth Ekstraliga 2022"]
[Site "Lublin"]
[Date "2022.06.26"]
[Round "2.4"]
[White "Sowinski, Pawel"]
[Black "Ochedzan, Filip"]
[Result "1-0"]
[ECO "B87"]
[WhiteElo "2060"]
[BlackElo "1873"]
[Annotator "NA RC"]
[PlyCount "101"]
[EventDate "2022.06.24"]
[EventType "team-tourn"]
[EventCountry "POL"]
[SourceTitle "playchess.com"]
[Source "ChessBase"]
[SourceQuality "1"]
[TimeControl "40/5400+30:1800+30"]

1. e4 {[%emt 0:00:03]} c5 {[%emt 0:00:09]} 2. Nf3 {[%emt 0:00:02]} d6 {[%emt 0:00:15]} 3. d4 {[%emt 0:00:05]} cxd4 {[%emt 0:00:08]} 4. Nxd4 {[%emt 0:00:04]} Nf6 {[%emt 0:00:17]} 5. Nc3 {[%emt 0:00:04]} a6 {[%emt 0:00:29]} 6. Bc4 {[%emt 0:00:07]} e6 {[%emt 0:01:08]} 7. Bb3 {[%emt 0:00:01]} b5 {[%emt 0:03:38]} 8. Bg5 {[%emt 0:00:08]} Be7 {[%emt 0:00:26]} 9. Qf3 {[%emt 0:00:05]} Qb6 {[%emt 0:21:11]} 10. O-O-O {[%emt 0:00:02]} O-O {[%emt 0:05:01]} 11. Rhe1 {[%emt 0:05:41]} Nc6 {[%emt 0:07:55]} 12. Nxc6 {[%emt 0:20:27]} Qxc6 {[%emt 0:00:10]} 13. Qg3 {[%emt 0:04:47]} Rd8 {[%emt 0:17:32]} 14. Bxf6 {[%emt 0:06:01]} Bxf6 {[%emt 0:00:10]} 15. Nd5 {[%emt 0:02:26]} exd5 {[%emt 0:12:10]} 16. Bxd5 {[%emt 0:00:03]} Qc5 {[%emt 0:00:52]} 17. Bxa8 {[%emt 0:00:19]} Be6 {[%emt 0:02:33]} 18. Bd5 {[%emt 0:00:04]} Rc8 {[%emt 0:00:40]} 19. Re2 {[%emt 0:15:40]} Bd7 {[%emt 0:07:08]} 20. Bb3 {[%emt 0:08:44]} Be5 {[%emt 0:03:54]} 21. f4 {[%emt 0:01:14]} Bd4 {[%emt 0:00:21]} 22. Kb1 {[%emt 0:09:17]} Rc6 {[%emt 0:05:34]} 23. h3 {[%emt 0:03:20]} Qb6 {[%emt 0:05:30]} 24. Qd3 {[%emt 0:01:14]} Bc5 {[%emt 0:00:25]} 25. e5 {[%emt 0:00:41]} Be6 {[%emt 0:01:18]} 26. f5 {[%emt 0:03:53]} Bc4 {[%emt 0:01:37]} 27. Bxc4 {[%emt 0:00:01]} bxc4 {[%emt 0:00:10]} 28. Qxc4 {[%emt 0:00:11]} dxe5 {[%emt 0:01:48]} 29. Rd7 {[%emt 0:04:22]} Be7 {[%emt 0:00:52]} 30. Qd5 {[%emt 0:00:01]} Rd6 {[%emt 0:01:12]} 31. Rxd6 {[%emt 0:00:36]} Bxd6 {[%emt 0:00:03]} 32. c4 {[%emt 0:00:12]} Qg1+ {[%emt 0:00:57]} 33. Kc2 {[%emt 0:00:02]} Qf1 {[%emt 0:00:14]} 34. Qa8+ {[%emt 0:01:19]} Bf8 {[%emt 0:00:03]} 35. Qf3 {[%emt 0:00:05]} Qg1 {[%emt 0:01:06]} 36. Rxe5 {[%emt 0:00:40]} Qd4 {[%emt 0:00:07]} 37. Re4 {[%emt 0:00:12]} Qc5 {[%emt 0:00:35]} 38. g4 {[%emt 0:00:17]} Qc6 {[%emt 0:00:15]} 39. Qd3 {[%emt 0:00:10]} Qa4+ {[%emt 0:00:14]} 40. Kb1 {[%emt 0:00:00]} Qc6 {[%emt 0:00:00]} 41. a3 {[%emt 0:00:49]} Qb6 {[%emt 0:00:35]} 42. Qd4 {[%emt 0:00:13]} Qb8 {[%emt 0:00:48]} 43. c5 {[%emt 0:00:26]} Qb5 {[%emt 0:00:22]} 44. Qd5 {[%emt 0:01:32]} Bxc5 {[%emt 0:03:04]} 45. Rc4 {[%emt 0:00:17]} Bf8 {[%emt 0:00:36]} 46. Qxb5 {[%emt 0:00:07]} axb5 {[%emt 0:00:02]} 47. Rc8 {[%emt 0:00:02]} b4 {[%emt 0:00:15]} 48. a4 {[%emt 0:00:04]} f6 {[%emt 0:00:11]} 49. a5 {[%emt 0:00:04]} Kf7 {[%emt 0:00:10]} 50. Rxf8+ {[%emt 0:00:07]} Kxf8 {[%emt 0:00:11]} 51. a6 {[%emt 0:00:01]} 1-0

[Event "Polish Youth Ekstraliga 2022"]
[Site "Lublin"]
[Date "2022.06.26"]
[Round "2.5"]
[White "Lochina, Justyna"]
[Black "Wikar, Martyna"]
[Result "0-1"]
[ECO "B23"]
[WhiteElo "1672"]
[BlackElo "2197"]
[Annotator "RC"]
[PlyCount "73"]
[EventDate "2022.06.24"]
[EventType "team-tourn"]
[EventCountry "POL"]
[SourceTitle "playchess.com"]
[Source "ChessBase"]
[SourceQuality "1"]
[TimeControl "40/5400+30:1800+30"]

1. e4 {[%emt 0:00:02]} c5 {[%emt 0:00:19]} 2. Nc3 {[%emt 0:00:14]} a6 {[%emt 0:01:49]} 3. Nf3 {[%emt 0:02:58]} b5 {[%emt 0:00:31]} 4. d4 {[%emt 0:01:01]} cxd4 {[%emt 0:01:01]} 5. Nxd4 {[%emt 0:00:26]} Bb7 {[%emt 0:00:43]} 6. a3 {[%emt 0:06:41]} e6 {[%emt 0:00:58]} 7. Bd3 {[%emt 0:05:46]} Nc6 {[%emt 0:04:41]} 8. Be3 {[%emt 0:03:27]} Nf6 {[%emt 0:03:10]} 9. O-O {[%emt 0:04:37]} Ne5 {[%emt 0:02:16]} 10. Qe2 {[%emt 0:14:22]} Neg4 {[%emt 0:07:44]} 11. Nb3 {[%emt 0:14:50]} Nxe3 {[%emt 0:01:45]} 12. Qxe3 {[%emt 0:01:09]} Qc7 {[%emt 0:12:00]} 13. f4 {[%emt 0:06:13]} Ng4 {[%emt 0:01:42]} 14. Qe2 {[%emt 0:07:00]} h5 {[%emt 0:01:03]} 15. Rae1 {[%emt 0:03:29]} b4 {[%emt 0:03:38]} 16. Nd5 {[%emt 0:10:53]} Bc5+ {[%emt 0:12:12]} 17. Nxc5 {[%emt 0:00:52]} Qxc5+ {[%emt 0:00:06]} 18. Ne3 {[%emt 0:00:26]} bxa3 {[%emt 0:00:35]} 19. bxa3 {[%emt 0:00:46]} Bc6 {[%emt 0:05:48]} 20. h3 {[%emt 0:03:17]} Nxe3 {[%emt 0:02:07]} 21. Qxe3 {[%emt 0:00:08]} Qxe3+ {[%emt 0:01:36]} 22. Rxe3 {[%emt 0:00:08]} Ke7 {[%emt 0:00:21]} 23. Rb1 {[%emt 0:01:03]} Rhc8 {[%emt 0:00:30]} 24. Rb6 {[%emt 0:01:20]} a5 {[%emt 0:00:19]} 25. Bb5 {[%emt 0:04:38]} Bxb5 {[%emt 0:01:24]} 26. Rxb5 {[%emt 0:00:08]} g6 {[%emt 0:00:32]} 27. c3 {[%emt 0:04:30]} Rc4 {[%emt 0:01:14]} 28. Kf2 {[%emt 0:00:53]} Ra4 {[%emt 0:00:55]} 29. Rb3 {[%emt 0:00:22]} Rc8 {[%emt 0:02:48]} 30. Ke2 {[%emt 0:01:05]} h4 {[%emt 0:01:36]} 31. Kd3 {[%emt 0:00:54]} f5 {[%emt 0:03:00]} 32. exf5 {[%emt 0:01:10]} gxf5 {[%emt 0:00:15]} 33. Re5 {[%emt 0:00:38]} Rg8 {[%emt 0:00:45]} 34. Rbb5 {[%emt 0:01:18]} Rxa3 {[%emt 0:01:10]} 35. Rxa5 {[%emt 0:00:29]} Rg3+ {[%emt 0:00:52]} 36. Re3 {[%emt 0:00:42]} Rxe3+ {[%emt 0:00:09]} 37. Kd4 0-1

[Event "Polish Youth Ekstraliga 2022"]
[Site "Lublin"]
[Date "2022.06.26"]
[Round "2.6"]
[White "Natoli, Alessia"]
[Black "Smietanska, Wiktoria"]
[Result "1-0"]
[ECO "B22"]
[WhiteElo "1680"]
[BlackElo "1879"]
[Annotator "NA RC"]
[PlyCount "69"]
[EventDate "2022.06.24"]
[EventType "team-tourn"]
[EventCountry "POL"]
[SourceTitle "playchess.com"]
[Source "ChessBase"]
[SourceQuality "1"]
[TimeControl "40/5400+30:1800+30"]

1. e4 {[%emt 0:00:19]} c5 {[%emt 0:00:06]} 2. c3 {[%emt 0:01:12]} Nf6 {[%emt 0:00:15]} 3. e5 {[%emt 0:00:56]} Nd5 {[%emt 0:00:16]} 4. d4 {[%emt 0:00:31]} cxd4 {[%emt 0:00:53]} 5. cxd4 {[%emt 0:00:10]} Nc6 {[%emt 0:01:18]} 6. Nf3 {[%emt 0:02:18]} d6 {[%emt 0:02:42]} 7. Bc4 {[%emt 0:01:36]} dxe5 {[%emt 0:14:54]} 8. Nxe5 {[%emt 0:09:33]} e6 {[%emt 0:02:40]} 9. Nxc6 {[%emt 0:03:42]} bxc6 {[%emt 0:00:14]} 10. O-O {[%emt 0:03:22]} Be7 {[%emt 0:02:57]} 11. Nc3 {[%emt 0:04:23]} O-O {[%emt 0:01:55]} 12. Qe2 {[%emt 0:08:25]} Bb7 {[%emt 0:05:27]} 13. Be3 {[%emt 0:03:34]} Qa5 {[%emt 0:11:56]} 14. Rac1 {[%emt 0:04:43]} Rfd8 {[%emt 0:12:52]} 15. Rfd1 {[%emt 0:03:25]} Rac8 {[%emt 0:01:34]} 16. Ne4 {[%emt 0:06:48]} Nxe3 {[%emt 0:09:13]} 17. Qxe3 {[%emt 0:01:24]} Ba6 {[%emt 0:03:05]} 18. Bb3 {[%emt 0:03:08]} Qh5 {[%emt 0:03:10]} 19. Nc5 {[%emt 0:06:55]} Bxc5 {[%emt 0:06:34]} 20. Rxc5 {[%emt 0:00:11]} Qg6 {[%emt 0:12:06]} 21. Ra5 {[%emt 0:01:49]} Bb7 {[%emt 0:00:48]} 22. Rxa7 {[%emt 0:01:47]} Ba8 {[%emt 0:02:01]} 23. f3 {[%emt 0:02:33]} Qf6 {[%emt 0:03:04]} 24. Qc3 {[%emt 0:05:43]} Qf4 {[%emt 0:01:18]} 25. Bc2 {[%emt 0:02:21]} Rd5 {[%emt 0:00:55]} 26. Be4 {[%emt 0:02:05]} Rd6 {[%emt 0:00:35]} 27. g3 {[%emt 0:04:20]} Qf6 {[%emt 0:00:30]} 28. Kf2 {[%emt 0:01:21]} h5 {[%emt 0:00:33]} 29. Qc5 {[%emt 0:01:19]} Rcd8 {[%emt 0:00:34]} 30. Rxa8 {[%emt 0:01:23]} Rxa8 {[%emt 0:00:26]} 31. Qxd6 {[%emt 0:00:04]} g6 {[%emt 0:00:23]} 32. a3 {[%emt 0:00:20]} Rd8 {[%emt 0:00:14]} 33. Qc5 {[%emt 0:00:18]} Rb8 {[%emt 0:00:27]} 34. Rd2 {[%emt 0:00:09]} h4 {[%emt 0:00:08]} 35. Qe5 1-0

[Event "Polish Youth Ekstraliga 2022"]
[Site "Lublin"]
[Date "2022.06.26"]
[Round "2.7"]
[White "Ciborowski, Konrad Jr"]
[Black "Budzisz, Adrian"]
[Result "1-0"]
[ECO "A45"]
[WhiteElo "1927"]
[BlackElo "2152"]
[Annotator "RC"]
[PlyCount "79"]
[EventDate "2022.06.24"]
[EventType "team-tourn"]
[EventCountry "POL"]
[SourceTitle "playchess.com"]
[Source "ChessBase"]
[SourceQuality "1"]
[TimeControl "40/5400+30:1800+30"]

1. d4 {[%emt 0:00:01]} Nf6 {[%emt 0:00:15]} 2. Nc3 {[%emt 0:00:04]} d5 {[%emt 0:00:07]} 3. Bf4 {[%emt 0:00:05]} c6 {[%emt 0:02:05]} 4. e3 {[%emt 0:00:06]} Bf5 {[%emt 0:00:34]} 5. f3 {[%emt 0:00:05]} e6 {[%emt 0:00:56]} 6. g4 {[%emt 0:00:03]} Bg6 {[%emt 0:00:16]} 7. h4 {[%emt 0:00:02]} h6 {[%emt 0:05:04]} 8. h5 {[%emt 0:00:17]} Bh7 {[%emt 0:00:05]} 9. Bd3 {[%emt 0:00:02]} Bd6 {[%emt 0:02:07]} 10. Nge2 {[%emt 0:01:48]} Bxd3 {[%emt 0:04:02]} 11. Qxd3 {[%emt 0:00:08]} Bxf4 {[%emt 0:00:08]} 12. Nxf4 {[%emt 0:00:06]} Nfd7 {[%emt 0:00:17]} 13. O-O-O {[%emt 0:03:36]} b5 {[%emt 0:05:55]} 14. Kb1 {[%emt 0:04:10]} b4 {[%emt 0:03:43]} 15. Na4 {[%emt 0:00:40]} Qa5 {[%emt 0:01:06]} 16. b3 {[%emt 0:00:41]} Na6 {[%emt 0:00:47]} 17. e4 {[%emt 0:03:28]} Nb6 {[%emt 0:03:13]} 18. Nc5 {[%emt 0:56:40]} Nxc5 {[%emt 0:04:07]} 19. dxc5 {[%emt 0:00:03]} Qxc5 {[%emt 0:00:08]} 20. exd5 {[%emt 0:00:25]} Nxd5 {[%emt 0:03:08]} 21. Nxd5 {[%emt 0:00:06]} cxd5 {[%emt 0:00:13]} 22. Rhg1 {[%emt 0:00:33]} Rc8 {[%emt 0:02:22]} 23. g5 {[%emt 0:03:45]} Kf8 {[%emt 0:00:33]} 24. g6 {[%emt 0:01:11]} f6 {[%emt 0:00:18]} 25. Rge1 {[%emt 0:00:51]} Rc6 {[%emt 0:00:05]} 26. Re4 {[%emt 0:16:20]} Rd6 {[%emt 0:01:21]} 27. Rc4 {[%emt 0:02:57]} dxc4 {[%emt 0:00:45]} 28. Qxd6+ {[%emt 0:00:02]} Qxd6 {[%emt 0:00:06]} 29. Rxd6 {[%emt 0:00:01]} Ke7 30. Ra6 Ra8 {[%emt 0:00:57]} 31. bxc4 {[%emt 0:00:06]} f5 {[%emt 0:00:18]} 32. f4 {[%emt 0:00:03]} Kf6 {[%emt 0:07:44]} 33. c3 {[%emt 0:00:44]} bxc3 {[%emt 0:05:43]} 34. Kc2 {[%emt 0:00:06]} Rf8 {[%emt 0:00:16]} 35. Rxa7 {[%emt 0:02:24]} e5 {[%emt 0:00:21]} 36. Rf7+ {[%emt 0:03:30]} Rxf7 {[%emt 0:00:06]} 37. fxe5+ {[%emt 0:00:02]} Ke6 {[%emt 0:00:17]} 38. gxf7 {[%emt 0:00:03]} Kxf7 {[%emt 0:00:16]} 39. c5 {[%emt 0:00:29]} Ke6 {[%emt 0:01:57]} 40. c6 {[%emt 0:00:00]} 1-0

[Event "Polish Youth Ekstraliga 2022"]
[Site "Lublin"]
[Date "2022.06.26"]
[Round "2.8"]
[White "Backiel, Hubert"]
[Black "Wydmanski, Szymon"]
[Result "1-0"]
[ECO "B32"]
[WhiteElo "2045"]
[BlackElo "1815"]
[Annotator "NA RC"]
[PlyCount "75"]
[EventDate "2022.06.24"]
[EventType "team-tourn"]
[EventCountry "POL"]
[SourceTitle "playchess.com"]
[Source "ChessBase"]
[SourceQuality "1"]
[TimeControl "40/5400+30:1800+30"]

1. e4 {[%emt 0:00:05]} c5 {[%emt 0:00:14]} 2. Nf3 {[%emt 0:00:09]} Nc6 {[%emt 0:00:09]} 3. d4 {[%emt 0:00:10]} cxd4 {[%emt 0:00:06]} 4. Nxd4 {[%emt 0:00:07]} e5 {[%emt 0:00:32]} 5. Nb5 {[%emt 0:00:06]} d6 {[%emt 0:00:12]} 6. c4 {[%emt 0:00:06]} a6 {[%emt 0:05:43]} 7. N5c3 {[%emt 0:00:06]} Be6 {[%emt 0:02:55]} 8. Nd5 {[%emt 0:06:32]} Bxd5 {[%emt 0:05:12]} 9. cxd5 {[%emt 0:00:30]} Nb8 {[%emt 0:03:59]} 10. Bd3 {[%emt 0:02:47]} Nd7 {[%emt 0:02:16]} 11. O-O {[%emt 0:01:28]} Be7 {[%emt 0:01:02]} 12. b4 {[%emt 0:05:49]} f5 {[%emt 0:12:11]} 13. Qh5+ {[%emt 0:11:34]} g6 {[%emt 0:00:33]} 14. Qh3 {[%emt 0:00:05]} f4 {[%emt 0:12:17]} 15. Nd2 {[%emt 0:02:30]} Nb6 {[%emt 0:12:22]} 16. Nb3 {[%emt 0:10:05]} Qc8 {[%emt 0:04:09]} 17. Qf3 {[%emt 0:13:18]} Nf6 {[%emt 0:04:19]} 18. Bd2 {[%emt 0:01:43]} Kf7 {[%emt 0:12:26]} 19. a4 {[%emt 0:09:22]} Qg4 {[%emt 0:02:41]} 20. Qxg4 {[%emt 0:02:18]} Nxg4 {[%emt 0:00:06]} 21. Na5 {[%emt 0:01:31]} Rab8 {[%emt 0:01:17]} 22. Rfc1 {[%emt 0:02:42]} Rhc8 {[%emt 0:01:23]} 23. Rxc8 {[%emt 0:00:48]} Nxc8 {[%emt 0:00:11]} 24. Rc1 {[%emt 0:03:42]} Bd8 {[%emt 0:03:58]} 25. Nxb7 {[%emt 0:01:03]} Bb6 {[%emt 0:04:50]} 26. Rxc8 {[%emt 0:01:37]} Bxf2+ {[%emt 0:02:19]} 27. Kf1 {[%emt 0:00:21]} Rxb7 {[%emt 0:00:10]} 28. Bxa6 {[%emt 0:02:15]} Ra7 {[%emt 0:00:20]} 29. Rc6 {[%emt 0:04:38]} Ke7 {[%emt 0:02:20]} 30. a5 {[%emt 0:02:22]} Bd4 {[%emt 0:01:20]} 31. Bc8 {[%emt 0:07:07]} Ne3+ {[%emt 0:01:36]} 32. Ke2 {[%emt 0:00:07]} Nxg2 {[%emt 0:02:12]} 33. b5 {[%emt 0:00:04]} Kd8 {[%emt 0:00:38]} 34. b6 {[%emt 0:01:30]} Rf7 {[%emt 0:00:53]} 35. Be6 {[%emt 0:01:28]} f3+ {[%emt 0:00:30]} 36. Kf1 {[%emt 0:00:13]} Rb7 {[%emt 0:00:36]} 37. Bg5+ {[%emt 0:00:14]} Ke8 {[%emt 0:00:06]} 38. Rc8# {[%emt 0:00:08]} 1-0

[Event "Polish Youth Ekstraliga 2022"]
[Site "Lublin"]
[Date "2022.06.26"]
[Round "2.9"]
[White "Wolak, Maciej"]
[Black "Ptaszynski, Szymon"]
[Result "0-1"]
[ECO "B28"]
[WhiteElo "1316"]
[BlackElo "1781"]
[Annotator "NA RC"]
[PlyCount "87"]
[EventDate "2022.06.24"]
[EventType "team-tourn"]
[EventCountry "POL"]
[SourceTitle "playchess.com"]
[Source "ChessBase"]
[SourceQuality "1"]
[TimeControl "40/5400+30:1800+30"]

1. e4 {[%emt 0:00:03]} c5 {[%emt 0:00:03]} 2. Nf3 {[%emt 0:00:10]} a6 {[%emt 0:00:03]} 3. c4 {[%emt 0:00:29]} Nc6 {[%emt 0:00:04]} 4. d4 {[%emt 0:01:12]} cxd4 {[%emt 0:00:04]} 5. Nxd4 {[%emt 0:00:11]} e5 {[%emt 0:00:02]} 6. Nf5 {[%emt 0:00:58]} d5 {[%emt 0:00:31]} 7. Ng3 {[%emt 0:11:29]} d4 {[%emt 0:00:51]} 8. Bd3 {[%emt 0:02:46]} Nf6 {[%emt 0:02:57]} 9. O-O {[%emt 0:01:26]} Bd6 {[%emt 0:02:30]} 10. h3 {[%emt 0:02:54]} Be6 {[%emt 0:06:14]} 11. f4 {[%emt 0:04:54]} exf4 {[%emt 0:01:29]} 12. Bxf4 {[%emt 0:00:21]} Bxf4 {[%emt 0:00:03]} 13. Rxf4 {[%emt 0:00:39]} Qc7 {[%emt 0:02:50]} 14. Ne2 {[%emt 0:04:44]} Ne5 {[%emt 0:02:13]} 15. b3 {[%emt 0:01:46]} Rd8 {[%emt 0:07:55]} 16. Rf1 {[%emt 0:02:16]} Nfd7 {[%emt 0:03:56]} 17. Nf4 {[%emt 0:04:49]} Nc5 {[%emt 0:01:58]} 18. Qe2 {[%emt 0:02:08]} g5 {[%emt 0:02:27]} 19. Nxe6 {[%emt 0:00:52]} Nxe6 {[%emt 0:00:05]} 20. Qc2 {[%emt 0:03:35]} Nf4 {[%emt 0:00:38]} 21. Rxf4 {[%emt 0:04:07]} gxf4 {[%emt 0:00:07]} 22. Nd2 {[%emt 0:01:15]} Rg8 {[%emt 0:03:47]} 23. Rf1 {[%emt 0:01:27]} Rg3 {[%emt 0:00:48]} 24. Nf3 {[%emt 0:04:15]} Nxf3+ {[%emt 0:00:26]} 25. Rxf3 {[%emt 0:00:11]} Rxf3 {[%emt 0:00:59]} 26. gxf3 {[%emt 0:00:06]} Ke7 {[%emt 0:01:08]} 27. Qg2 {[%emt 0:00:45]} Qe5 {[%emt 0:00:49]} 28. Qg4 {[%emt 0:01:29]} h5 {[%emt 0:00:16]} 29. Qh4+ {[%emt 0:01:24]} f6 {[%emt 0:00:06]} 30. Qe1 {[%emt 0:00:43]} Rg8+ {[%emt 0:00:13]} 31. Kf2 {[%emt 0:00:26]} a5 {[%emt 0:04:17]} 32. Qc1 {[%emt 0:00:46]} b6 {[%emt 0:00:28]} 33. Qa3+ {[%emt 0:00:23]} Qc5 {[%emt 0:00:39]} 34. Qxc5+ {[%emt 0:03:48]} bxc5 {[%emt 0:00:06]} 35. Be2 {[%emt 0:03:04]} h4 {[%emt 0:00:52]} 36. Bd3 {[%emt 0:00:20]} Rg3 {[%emt 0:00:05]} 37. Bf1 {[%emt 0:00:05]} Kd6 {[%emt 0:00:05]} 38. a3 {[%emt 0:01:26]} Ke5 {[%emt 0:01:38]} 39. a4 {[%emt 0:02:50]} d3 {[%emt 0:00:08]} 40. Bxd3 {[%emt 0:00:00]} Rxh3 {[%emt 0:00:00]} 41. Kg2 {[%emt 0:00:48]} Rg3+ {[%emt 0:00:08]} 42. Kf2 {[%emt 0:00:08]} h3 {[%emt 0:00:06]} 43. Bf1 {[%emt 0:00:04]} h2 {[%emt 0:00:03]} 44. Bg2 {[%emt 0:00:07]} 0-1